bitfinex-derivatives/quotes_ETHF0:USTF0_20250103
["timestamp","ask_amount","ask_price","bid_price","bid_amount"]
[1735902371159,41.08998,3451.1,3451.0,1.29920967]
[1735902377358,43.36907051,3451.1,3451.0,1.29920967]
[1735902379465,41.08998,3451.1,3451.0,1.29920967]
[1735902380870,44.94536063,3451.1,3451.0,1.29920967]
[1735902381366,44.94536063,3451.1,3451.0,1.00922967]
[1735902381562,44.94536063,3451.1,3451.0,2.30843934]
[1735902381563,3.85538063,3451.1,3451.0,2.30843934]
[1735902383872,2.27878791,3451.6,3451.0,6.17973103]
[1735902384073,2.27878791,3451.6,3451.5,1.29916967]
[1735902385469,2.27878791,3451.7,3451.6,0.28993]
[1735902385661,2.27878791,3451.7,3451.6,1.29915967]
[1735902390373,2.56870791,3451.8,3451.6,1.00922967]
[1735902390673,2.56870791,3451.8,3451.7,0.28992]
[1735902390978,43.36870791,3451.8,3451.7,0.28992]
[1735902393069,43.07878791,3451.8,3451.7,0.28992]
[1735902393275,43.07878791,3451.8,3451.7,4.50694967]
[1735902394877,40.8,3451.8,3451.7,4.50694967]
[1735902396274,40.8,3451.8,3451.7,1.29914967]
[1735902396577,40.8,3451.8,3451.7,4.50694967]
[1735902402680,40.8,3451.8,3451.7,3.49772]
[1735902402881,40.8,3451.8,3451.7,4.50694967]
[1735902405682,41.08992,3451.8,3451.7,4.50694967]
[1735902408276,41.08992,3451.8,3451.7,4.21702967]
[1735902409684,43.36870791,3451.8,3451.7,4.50694967]
[1735902411984,43.36870791,3451.8,3451.7,4.21702967]
[1735902413192,43.36870791,3451.8,3451.7,4.50694967]
[1735902414391,41.08992,3451.8,3451.7,4.50694967]
[1735902416690,44.51012983,3451.8,3451.7,4.50694967]
[1735902417992,44.51012983,3451.8,3451.7,1.29914967]
[1735902418487,44.51012983,3451.8,3451.7,1.00922967]
[1735902418694,44.51012983,3451.8,3451.7,1.29914967]
[1735902419495,44.94521367,3451.8,3451.7,1.29914967]
[1735902422191,44.94521367,3451.8,3451.7,0.28992]
[1735902422999,0.28993,3451.6,3451.5,3.2078]
[1735902423583,1.29915967,3451.6,3451.5,3.2078]
[1735902423791,0.28994,3451.5,3451.4,4.53623245]
[1735902424389,3.49774,3451.5,3451.4,4.53623245]
[1735902425598,3.49774,3451.5,3451.3,1.00922967]
[1735902425599,8.14823035,3451.5,3451.3,1.00922967]
[1735902425795,0.28995,3451.4,3451.3,1.29917967]
[1735902426996,5.23038035,3451.5,3451.4,0.28995]
[1735902427201,0.28995,3451.5,3451.4,0.28995]
[1735902429893,5.28618868,3451.5,3451.4,0.28995]
[1735902430094,0.28995,3451.4,3451.3,1.29917967]
[1735902431301,5.28618868,3451.4,3451.3,1.29917967]
[1735902431901,5.28618868,3451.4,3451.3,1.00922967]
[1735902432098,0.28996,3451.3,3451.2,0.28996]
[1735902433002,0.28997,3451.2,3451.1,3.2078]
[1735902433203,0.28998,3451.1,3451.0,4.53623245]
[1735902434404,0.28998,3451.0,3450.9,1.00922967]
[1735902434796,0.28998,3451.0,3450.9,1.29921967]
[1735902435902,0.72507519,3451.0,3450.9,1.29921967]
[1735902437097,4.14352622,3451.0,3450.9,1.29921967]
[1735902437998,4.14352622,3451.0,3450.9,1.00922967]
[1735902438200,2.56843072,3451.0,3450.9,1.29921967]
[1735902439308,2.56843072,3451.0,3450.9,1.00922967]
[1735902439698,3.70843103,3451.0,3450.9,1.00922967]
[1735902439893,3.70843103,3451.0,3450.9,1.29921967]
[1735902441396,3.70843103,3451.0,3450.9,1.00922967]
[1735902442593,4.14360878,3451.0,3450.9,1.00922967]
[1735902443500,4.86285845,3451.0,3450.7,1.00922967]
[1735902443699,0.29001,3450.7,3450.6,3.49781]
[1735902446702,0.29001,3450.7,3450.6,3.2078]
[1735902447397,41.09001,3450.7,3450.6,3.2078]
[1735902447807,0.29005,3450.2,3450.1,5.54546212]
[1735902448003,0.29005,3450.2,3450.1,4.53623245]
[1735902448204,1.00922967,3450.3,3450.0,4.53623245]
[1735902448507,0.29006,3450.1,3450.0,5.54546212]
[1735902449705,2.56708445,3450.1,3450.0,1.00922967]
[1735902449906,0.29008,3449.9,3449.8,1.00922967]
[1735902450704,0.29008,3449.9,3449.8,1.29930967]
[1735902452007,0.29008,3449.9,3449.5,3.2078]
[1735902452008,4.01141412,3450.1,3449.5,3.2078]
[1735902452314,0.29009,3449.8,3449.7,0.29008]
[1735902452503,41.09009,3449.8,3449.7,0.29008]
[1735902453305,0.29009,3449.8,3449.7,0.29008]
[1735902454212,0.29009,3449.8,3449.7,1.29930967]
[1735902460523,0.2901,3449.6,3449.5,4.50713967]
[1735902460709,0.2901,3449.6,3449.5,4.21702967]
[1735902461307,0.2901,3449.6,3449.5,4.50713967]
[1735902468126,0.2901,3449.6,3449.5,1.29933967]
[1735902468327,0.2901,3449.6,3449.5,4.50713967]
[1735902468825,0.29008,3450.0,3449.9,0.29006]
[1735902469527,0.29009,3449.8,3449.7,0.29008]
[1735902472626,1.00922967,3450.0,3449.6,1.00922967]
[1735902472823,1.00922967,3450.0,3449.6,1.29932967]
[1735902472824,0.29009,3449.7,3449.6,1.29932967]
[1735902473124,0.29009,3449.7,3449.6,1.00922967]
[1735902473327,0.29009,3449.7,3449.6,1.29932967]
[1735902474222,0.29009,3449.7,3449.6,1.00922967]
[1735902474522,0.29009,3449.7,3449.6,1.29932967]
[1735902475921,0.29009,3449.7,3449.6,1.00922967]
[1735902476423,0.29009,3449.7,3449.6,1.29932967]
[1735902481735,2.27702445,3450.0,3449.6,1.00922967]
[1735902481934,0.29009,3449.9,3449.8,1.29930967]
[1735902484431,2.56711445,3449.9,3449.8,1.29930967]
[1735902487431,2.56711445,3449.9,3449.8,0.29008]
[1735902490137,3.70854103,3449.9,3449.8,0.29008]
[1735902491634,0.29009,3449.9,3449.8,0.29008]
[1735902493238,4.85123349,3449.9,3449.8,0.29008]
[1735902493834,0.72540989,3449.9,3449.8,0.29008]
[1735902494039,0.72540989,3449.9,3449.8,1.29930967]
[1735902495144,0.29009,3449.9,3449.8,1.00922967]
[1735902495335,0.29009,3449.9,3449.8,1.29930967]
[1735902495641,0.29009,3449.9,3449.8,1.00922967]
[1735902496344,5.23773864,3449.9,3449.8,1.00922967]
[1735902497141,5.23773864,3449.9,3449.8,1.29930967]
[1735902497942,4.94764864,3449.9,3449.8,1.29930967]
[1735902499543,4.94764864,3449.9,3449.8,14.5410391]
[1735902499544,2.28397565,3449.9,3449.8,14.5410391]
[1735902500643,2.28397565,3449.9,3449.8,15.6580391]
[1735902500941,2.28397565,3450.0,3449.9,0.29008]
[1735902501146,2.57404565,3450.0,3449.9,1.29930967]
[1735902502142,3.71603348,3450.0,3449.9,5.84223079]
[1735902503845,4.72526315,3450.0,3449.9,4.54292112]
[1735902505249,6.01248236,3450.0,3449.7,3.49789]
[1735902505441,0.29008,3449.8,3449.7,3.49789]
[1735902507061,3.71317861,3449.8,3449.7,3.49789]
[1735902507257,3.71317861,3449.8,3449.7,3.2078]
[1735902508460,3.71317861,3449.8,3449.7,3.49789]
[1735902508660,4.14848147,3449.8,3449.7,3.49789]
[1735902511450,3.85840147,3449.8,3449.7,3.49789]
[1735902512464,2.28205257,3449.8,3449.7,8.04081112]
[1735902513958,2.57213257,3449.8,3449.7,7.66486982]
[1735902515165,0.29008,3449.8,3449.7,3.49789]
[1735902515965,0.29008,3449.8,3449.7,4.50711967]
[1735902516666,0.29008,3449.8,3449.7,9.05147384]
[1735902519065,0.29008,3449.8,3449.7,5.84367384]
[1735902519364,0.29008,3449.8,3449.7,9.05147384]
[1735902520468,3.42309861,3449.9,3449.7,8.76138384]
[1735902520766,3.71317861,3449.9,3449.8,0.29008]
[1735902521870,4.14846379,3449.9,3449.8,0.29008]
[1735902526268,0.72536518,3449.9,3449.8,0.29008]
[1735902527770,0.29008,3449.9,3449.8,0.29008]
[1735902529273,0.72536518,3449.9,3449.8,0.29008]
[1735902534676,4.14957381,3449.9,3449.8,4.83443417]
[1735902535974,0.72536518,3449.9,3449.8,0.29008]
[1735902536270,0.43528518,3449.9,3449.7,8.76138384]
[1735902536575,0.29008,3449.8,3449.7,9.05146384]
[1735902536772,0.29008,3449.8,3449.7,7.75215417]
[1735902536973,0.29008,3449.8,3449.7,8.04224417]
[1735902537577,4.14988497,3449.8,3449.7,8.04224417]
[1735902538980,4.14988497,3449.8,3449.7,4.83444417]
[1735902539175,4.14988497,3449.8,3449.7,8.04224417]
[1735902541583,3.85980497,3449.8,3449.7,8.04224417]
[1735902542386,3.42451979,3449.8,3449.7,7.66653649]
[1735902543677,3.42451979,3449.8,3449.7,14.48091817]
[1735902544985,3.71459979,3449.8,3449.7,14.48091817]
[1735902546488,4.14988774,3449.8,3449.7,14.48091817]
[1735902547485,0.72536795,3449.8,3449.7,14.48091817]
[1735902547988,1.73459762,3449.8,3449.7,14.19082817]
[1735902548180,0.72536795,3449.8,3449.7,14.19082817]
[1735902549187,0.29008,3449.8,3449.7,3.2078]
[1735902550381,0.72536795,3449.8,3449.7,3.2078]
[1735902551489,5.2372233,3449.8,3449.7,3.2078]
[1735902552584,0.29009,3449.7,3449.6,2.66239127]
[1735902552791,0.29011,3449.5,3449.4,6.81438168]
[1735902553084,45.30713967,3449.5,3449.4,6.81438168]
[1735902554391,50.30713967,3449.5,3449.4,6.81438168]
[1735902554588,45.30713967,3449.5,3449.4,6.81438168]
[1735902554887,0.29018,3448.7,3448.6,0.29018]
[1735902556190,2.56994815,3448.7,3448.6,0.29018]
[1735902557091,0.29019,3448.6,3448.5,1.29941967]
[1735902562491,0.29019,3448.6,3448.5,1.00922967]
[1735902562891,0.29022,3448.4,3448.3,1.29943967]
[1735902564296,0.29023,3448.2,3448.1,0.29021]
[1735902564493,0.29023,3448.2,3448.1,1.29943967]
[1735902598715,3.70988223,3448.2,3448.1,12.17667943]
[1735902600311,3.41965223,3448.3,3448.1,11.88646943]
[1735902600517,3.70987223,3448.3,3448.2,0.29022]
[1735902601113,3.70986223,3448.3,3448.2,0.29022]
[1735902601925,0.72569845,3448.3,3448.2,4.35307808]
[1735902603315,0.29021,3448.3,3448.2,4.35307808]
[1735902604816,0.72569845,3448.3,3448.2,4.35307808]
[1735902607431,5.28523476,3448.3,3448.2,4.35307808]
[1735902610831,4.99502476,3448.3,3448.2,5.36230775]
[1735902611634,4.99502476,3448.3,3448.2,12.17668943]
[1735902612332,4.99502476,3448.3,3448.2,15.38448943]
[1735902612633,4.99502476,3448.3,3448.2,16.50048943]
[1735902613230,2.28495178,3448.4,3448.2,17.52899226]
[1735902613430,2.28495178,3448.4,3448.3,0.29021]
[1735902614439,2.28495178,3448.7,3448.6,0.29019]
[1735902615138,2.28495178,3448.7,3448.6,1.29941967]
[1735902615639,2.28495178,3448.7,3448.6,12.19490668]
[1735902617736,2.28495178,3448.8,3448.7,0.29018]
[1735902620636,2.28495178,3448.9,3448.6,11.0496586]
[1735902620842,2.28495178,3448.9,3448.8,1.29939967]
[1735902623842,2.28495178,3449.0,3448.8,1.00922967]
[1735902624148,2.28495178,3449.0,3448.9,1.29938967]
[1735902625341,2.57509178,3449.1,3449.0,0.29015]
[1735902629342,0.29014,3449.1,3449.0,0.29015]
[1735902630048,43.37509178,3449.2,3449.1,0.29014]
[1735902630248,43.37509178,3449.2,3449.1,1.29936967]
[1735902630449,43.08495178,3449.2,3449.1,1.29936967]
[1735902631242,2.28495178,3449.2,3449.1,1.29936967]
[1735902631447,2.57508178,3449.2,3449.1,1.29936967]
[1735902632254,0.29013,3449.2,3449.1,1.29936967]
[1735902632551,2.28495178,3449.3,3449.2,0.29013]
[1735902633545,2.57507178,3449.4,3449.3,0.29013]
[1735902633950,2.57507178,3449.4,3449.3,1.29935967]
[1735902634651,0.29012,3449.4,3449.3,1.29935967]
[1735902634851,2.57506178,3449.5,3449.4,0.29012]
[1735902635248,2.28495178,3449.5,3449.4,0.29012]
[1735902635654,2.57505178,3449.6,3449.5,0.29011]
[1735902635855,43.37505178,3449.6,3449.5,1.29933967]
[1735902636155,43.08495178,3449.6,3449.5,1.29933967]
[1735902636748,2.28495178,3449.6,3449.5,1.29933967]
[1735902637348,2.28495178,3449.7,3449.6,0.2901]
[1735902638049,2.28495178,3449.7,3449.6,1.4061]
[1735902638950,0.29004,3450.4,3450.3,0.29004]
[1735902638951,2.57499178,3450.4,3450.3,0.29004]
[1735902639153,2.57499178,3450.4,3450.3,1.29926967]
[1735902640254,41.09004,3450.4,3450.3,1.29926967]
[1735902641051,41.09004,3450.4,3450.3,0.29004]
[1735902643457,41.80922967,3450.4,3449.9,1.00922967]
[1735902643758,1.00922967,3450.2,3449.8,4.3238]
[1735902643954,0.29008,3450.0,3449.8,3.2078]
[1735902644157,0.29008,3449.9,3449.8,3.49788]
[1735902645456,0.29007,3450.0,3449.9,0.29007]
[1735902645657,0.29007,3450.0,3449.9,1.00922967]
[1735902646356,0.29007,3450.0,3449.9,1.29930967]
[1735902646556,0.29006,3450.1,3450.0,0.29006]
[1735902650364,0.29006,3450.1,3449.9,1.00922967]
[1735902650365,0.29007,3450.0,3449.9,1.29929967]
[1735902655364,0.29007,3450.1,3450.0,0.29006]
[1735902657264,0.29006,3450.2,3450.1,0.29005]
[1735902662667,0.29006,3450.2,3450.1,1.29927967]
[1735902662867,0.29006,3450.2,3450.1,0.29005]
[1735902664273,0.29004,3450.3,3450.2,0.29004]
[1735902668776,2.57499178,3450.3,3450.2,0.29004]
[1735902672383,0.29008,3450.0,3449.9,0.29006]
[1735902672977,1.29930967,3450.0,3449.9,0.29006]
[1735902673283,0.29008,3449.8,3449.7,3.2078]
[1735902673481,1.29930967,3449.8,3449.7,3.2078]
[1735902674483,1.29930967,3449.8,3449.7,3.49789]
[1735902674684,0.29008,3449.8,3449.7,3.49789]
[1735902674987,4.15259768,3450.1,3449.7,4.21702967]
[1735902674988,3.42742768,3450.1,3449.7,4.21702967]
[1735902675177,0.29008,3450.0,3449.9,0.29007]
[1735902675676,0.29008,3449.9,3449.8,0.29008]
[1735902676782,4.15281898,3449.9,3449.8,0.29008]
[1735902677481,0.29008,3449.8,3449.7,3.49789]
[1735902677680,1.29930967,3449.8,3449.7,3.49789]
[1735902679275,1.29930967,3449.8,3449.7,0.29009]
[1735902679479,6.29415728,3449.8,3449.7,0.29009]
[1735902680183,4.99484761,3449.8,3449.7,1.29931967]
[1735902680581,4.99484761,3449.8,3449.7,0.29009]
[1735902681286,6.29415728,3449.8,3449.7,0.29009]
[1735902681486,0.2901,3449.7,3449.6,0.29009]
[1735902682385,0.7254113,3449.7,3449.6,0.29009]
[1735902685282,4.14768251,3449.7,3449.6,0.29009]
[1735902687082,3.85758251,3449.7,3449.6,0.29009]
[1735902688286,4.55953631,3449.9,3449.7,0.29009]
[1735902688287,3.42227121,3449.8,3449.7,0.29009]
[1735902688486,3.42227121,3449.8,3449.7,1.29931967]
[1735902688884,3.42227121,3449.8,3449.7,2.41531967]
[1735902689589,2.28115412,3449.9,3449.7,6.18707825]
[1735902689790,2.28115412,3449.9,3449.8,0.29008]
[1735902690788,2.28115412,3449.9,3449.8,4.84365581]
[1735902699287,4.14765251,3450.0,3449.7,6.67880548]
[1735902699493,4.14765251,3450.0,3449.9,0.29008]
[1735902700390,3.85758251,3450.0,3449.9,0.29008]
[1735902701085,3.85758251,3450.0,3449.9,1.29930967]
[1735902701993,3.42227121,3450.0,3449.9,1.29930967]
[1735902702584,3.71234121,3450.0,3449.9,1.29930967]
[1735902702789,3.42227121,3450.0,3449.9,1.29930967]
[1735902703898,3.71234121,3450.0,3449.9,1.29930967]
[1735902704590,3.42227121,3450.0,3449.9,1.29930967]
[1735902705999,3.71233121,3450.1,3450.0,0.29007]
[1735902706593,3.42227121,3450.1,3450.0,0.29007]
[1735902707095,0.43527546,3450.1,3450.0,0.29007]
[1735902707793,0.72533546,3450.1,3450.0,0.29007]
[1735902708196,0.29006,3450.1,3450.0,0.29007]
[1735902709403,0.72533546,3450.1,3450.0,0.29007]
[1735902709896,0.43527546,3450.1,3450.0,0.29007]
[1735902710804,2.28123003,3450.1,3450.0,4.35395745]
[1735902715503,2.28123003,3450.1,3450.0,4.84610882]
[1735902715703,2.28123003,3450.1,3450.0,4.55603882]
[1735902715906,3.5805197,3450.1,3450.0,4.55603882]
[1735902717202,3.5805197,3450.1,3449.7,4.84612882]
[1735902717203,0.29008,3449.8,3449.7,4.84612882]
[1735902722817,3.71213079,3449.9,3449.8,0.29008]
[1735902723117,3.71213079,3449.9,3449.8,1.29930967]
[1735902724721,3.71213079,3449.9,3449.8,1.00922967]
[1735902725018,3.71213079,3449.9,3449.8,1.29930967]
[1735902726113,4.14742868,3449.9,3449.8,1.29930967]
[1735902726817,3.85734868,3449.9,3449.8,1.29930967]
[1735902727615,3.42205079,3449.9,3449.8,1.29930967]
[1735902729021,3.71213079,3449.9,3449.8,1.29930967]
[1735902729221,3.71213079,3449.9,3449.8,5.85534849]
[1735902729916,3.42205079,3449.9,3449.8,5.85534849]
[1735902730826,3.71213079,3449.9,3449.8,5.85534849]
[1735902732126,3.71213079,3449.9,3449.8,4.84611882]
[1735902732323,4.14741448,3449.9,3449.8,4.84611882]
[1735902733026,3.85733448,3449.9,3449.8,4.84611882]
[1735902733224,4.14741448,3449.9,3449.8,4.84611882]
[1735902733621,0.72536369,3449.9,3449.8,4.84611882]
[1735902734731,0.29008,3449.9,3449.8,4.84611882]
[1735902735327,4.55953631,3450.0,3449.8,4.55603882]
[1735902735529,4.84960631,3450.0,3449.9,1.29930967]
[1735902737428,0.7253482,3450.0,3449.9,5.85534849]
[1735902738532,0.7253482,3450.0,3449.9,4.55603882]
[1735902738729,0.7253482,3450.0,3449.9,4.84611882]
[1735902739028,41.5253482,3450.0,3449.9,4.84611882]
[1735902739231,41.5253482,3450.0,3449.9,4.55603882]
[1735902739429,41.5253482,3450.0,3449.9,4.84611882]
[1735902740032,46.08488451,3450.0,3449.9,0.29008]
[1735902741533,0.29008,3449.9,3449.8,4.84611882]
[1735902742621,0.29008,3449.9,3449.8,4.55603882]
[1735902744229,0.29008,3449.9,3449.6,0.2901]
[1735902744230,0.29009,3449.7,3449.6,0.2901]
[1735902745639,0.7253682,3449.7,3449.6,0.2901]
[1735902746525,0.4352782,3449.7,3449.6,1.29932967]
[1735902746728,0.7253682,3449.7,3449.6,1.29932967]
[1735902747129,5.28905724,3449.7,3449.6,1.29932967]
[1735902748641,4.14788888,3449.7,3449.6,1.29932967]
[1735902751937,0.7253682,3449.7,3449.6,1.29932967]
[1735902753231,0.29009,3449.7,3449.6,1.29932967]
[1735902753833,0.29009,3449.7,3449.6,0.2901]
[1735902754034,0.29009,3449.7,3449.6,1.29932967]
[1735902754735,0.4352782,3449.7,3449.4,7.76383882]
[1735902755037,0.29011,3449.5,3449.4,4.55603882]
[1735902755537,41.09011,3449.5,3449.4,4.55603882]
[1735902756440,41.09011,3449.5,3449.0,0.29015]
[1735902756441,45.8551437,3449.5,3449.0,0.29015]
[1735902756642,1.29936967,3449.1,3449.0,0.29015]
[1735902757336,42.09936967,3449.1,3449.0,0.29015]
[1735902757643,0.29017,3448.9,3448.8,0.29016]
[1735902759043,3.70958713,3448.9,3448.8,0.29016]
[1735902760244,2.56873116,3448.9,3448.8,0.29016]
[1735902761143,0.29017,3448.8,3448.7,1.29939967]
[1735902763239,2.27856116,3449.0,3448.7,1.00922967]
[1735902763441,2.27856116,3449.0,3448.9,1.29938967]
[1735902764147,2.27856116,3449.0,3448.9,2.30861934]
[1735902764347,2.27856116,3449.3,3448.9,2.01845934]
[1735902764547,2.27856116,3449.3,3449.2,1.29935967]
[1735902765149,2.27856116,3449.3,3449.2,4.50715967]
[1735902766251,40.8,3449.6,3449.5,0.29011]
[1735902766453,40.8,3449.6,3449.5,1.29933967]
[1735902771854,41.0901,3449.6,3449.5,1.29933967]
[1735902772055,41.0901,3449.6,3449.5,1.00922967]
[1735902772952,0.2901,3449.7,3449.5,1.00922967]
[1735902773155,0.2901,3449.7,3449.6,1.29932967]
[1735902773356,41.0901,3449.7,3449.6,1.29932967]
[1735902779247,41.0901,3449.7,3449.6,1.00922967]
[1735902779448,41.0901,3449.7,3449.6,1.29932967]
[1735902782355,2.56865116,3449.8,3449.7,0.29009]
[1735902785059,0.29009,3449.8,3449.7,0.29009]
[1735902798366,41.09009,3449.8,3449.7,0.29009]
[1735902801771,41.09008,3449.8,3449.7,0.29009]
[1735902802271,2.27856116,3449.9,3449.8,0.29008]
[1735902802470,2.27856116,3449.9,3449.8,1.29930967]
[1735902803965,2.56862116,3450.1,3449.8,1.00922967]
[1735902804163,2.56862116,3450.1,3450.0,1.29929967]
[1735902806866,0.29006,3450.1,3450.0,1.29929967]
[1735902808363,4.14474114,3450.1,3450.0,1.29929967]
[1735902809870,3.85468114,3450.1,3450.0,1.29929967]
[1735902810076,3.85468114,3450.1,3450.0,2.30852934]
[1735902810275,3.85468114,3450.1,3450.0,1.29929967]
[1735902811276,2.28211459,3450.1,3450.0,12.19830925]
[1735902814581,2.28211459,3450.1,3450.0,5.36568032]
[1735902815879,2.28211459,3450.1,3450.0,5.85489761]
[1735902817482,2.57217459,3450.1,3450.0,5.85489761]
[1735902822984,2.28211459,3450.1,3450.0,5.85489761]
[1735902823971,2.57217459,3450.1,3450.0,5.85489761]
[1735902828083,2.28211459,3450.1,3450.0,5.85489761]
[1735902828983,2.57217459,3450.1,3450.0,5.85489761]
[1735902829379,2.28211459,3450.1,3450.0,5.85489761]
[1735902829579,2.57217459,3450.1,3450.0,5.85489761]
[1735902831886,2.28211459,3450.1,3450.0,5.85489761]
[1735902834383,2.57217459,3450.1,3450.0,5.85489761]
[1735902834783,2.28211459,3450.1,3450.0,5.85489761]
[1735902840995,2.28211459,3450.1,3450.0,9.91886586]
[1735902842491,2.28211459,3450.1,3450.0,10.92809553]
[1735902842693,3.70946713,3450.3,3450.0,12.91505652]
[1735902842890,3.41941713,3450.3,3450.2,1.29927967]
[1735902843405,3.70945713,3450.3,3450.2,1.29927967]
[1735902844204,0.29004,3450.3,3450.2,12.19587685]
[1735902846001,3.41941713,3450.4,3450.3,0.29004]
[1735902846002,3.70945713,3450.4,3450.3,0.29004]
[1735902847803,4.14467835,3450.4,3450.3,4.35400825]
[1735902850906,3.70945713,3450.4,3450.3,4.35400825]
[1735902854408,4.14467716,3450.4,3450.3,4.35400825]
[1735902856012,3.85463716,3450.4,3450.3,4.35400825]
[1735902857612,3.85463716,3450.4,3450.3,11.18663718]
[1735902857613,3.41941713,3450.4,3450.3,11.18663718]
[1735902857809,3.70944713,3450.4,3450.3,11.18663718]
[1735902859013,0.29003,3450.4,3450.3,11.18663718]
[1735902860114,3.41941713,3450.5,3450.3,10.89659718]
[1735902860316,3.70944713,3450.5,3450.4,1.29925967]
[1735902862006,4.14465207,3450.5,3450.4,5.8561512]
[1735902865118,3.70944713,3450.5,3450.4,5.4119794]
[1735902866715,3.70944713,3450.5,3450.4,1.29925967]
[1735902868418,4.14465362,3450.5,3450.4,5.85768406]
[1735902870418,3.85462362,3450.5,3450.4,5.85768406]
[1735902870821,4.14465362,3450.5,3450.4,5.85768406]
[1735902871216,3.85462362,3450.5,3450.4,5.85768406]
[1735902873923,3.85462362,3450.5,3450.4,5.41184403]
[1735902874922,44.65462362,3450.5,3450.4,5.41184403]
[1735902875227,44.65462362,3450.5,3450.4,1.29925967]
[1735902876821,44.65462362,3450.5,3450.4,5.85599947]
[1735902879230,41.23520649,3450.5,3450.4,5.85599947]
[1735902880326,41.52523649,3450.5,3450.4,5.85599947]
[1735902880630,41.52523649,3450.5,3450.4,9.96844996]
[1735902881630,41.52523649,3450.5,3450.4,5.41171016]
[1735902883726,41.23520649,3450.5,3450.4,5.41171016]
[1735902884030,41.52523649,3450.5,3450.4,5.41171016]
[1735902884231,41.23520649,3450.5,3450.4,5.41171016]
[1735902886228,41.23520649,3450.5,3450.4,12.24433909]
[1735902890437,41.52523649,3450.5,3450.4,12.24433909]
[1735902890832,46.0855474,3450.5,3450.4,12.24433909]
[1735902892633,45.7955174,3450.5,3450.4,12.24433909]
[1735902894533,41.23520649,3450.5,3450.4,12.24433909]
[1735902897235,41.23520649,3450.5,3450.4,5.41171016]
[1735902900240,0.43520649,3450.5,3450.4,5.41171016]
[1735902900535,0.43520649,3450.5,3450.4,12.25181064]
[1735902902240,0.43520649,3450.5,3450.4,5.41171016]
[1735902905141,3.86147692,3450.5,3450.4,14.52188206]
[1735902906443,3.42627043,3450.5,3450.4,5.41171016]
[1735902924259,3.42627043,3450.5,3450.4,8.61951016]
[1735902930471,3.86147692,3450.6,3450.4,8.32948016]
[1735902930676,3.86147692,3450.6,3450.5,0.29003]
[1735902931977,3.86147692,3450.6,3450.5,11.24170842]
[1735902933275,3.86147692,3450.6,3450.5,4.40248049]
[1735902935580,3.42627043,3450.6,3450.5,4.40248049]
[1735902941174,3.86144082,3450.6,3450.5,4.40248049]
[1735902944386,3.42627043,3450.6,3450.5,4.40248049]
[1735902945986,3.86144082,3450.6,3450.5,4.40248049]
[1735902947489,0.43517039,3450.6,3450.5,4.40248049]
[1735902948682,4.85032091,3450.7,3450.5,10.95334798]
[1735902948882,4.85032091,3450.7,3450.6,1.29924967]
[1735902950077,5.2854913,3450.7,3450.6,12.25259765]
[1735902950583,4.9954813,3450.7,3450.6,12.25259765]
[1735902950780,5.2854913,3450.7,3450.6,12.25259765]
[1735902951682,4.85032091,3450.7,3450.6,12.25259765]
[1735902951879,4.56031091,3450.7,3450.6,12.25259765]
[1735902952790,4.85032091,3450.7,3450.6,12.25259765]
[1735902952984,5.2854913,3450.7,3450.6,12.25259765]
[1735902954890,4.9954813,3450.7,3450.6,12.25259765]
[1735902955590,4.56031091,3450.7,3450.6,12.25259765]
[1735902956582,4.85032091,3450.7,3450.6,12.25259765]
[1735902956786,4.9954813,3450.7,3450.6,12.25259765]
[1735902956992,5.2854913,3450.7,3450.6,12.25259765]
[1735902962994,0.72518039,3450.7,3450.6,9.97252682]
[1735902964094,0.29001,3450.7,3450.6,5.86007633]
[1735902965692,0.72518039,3450.7,3450.6,5.86007633]
[1735902969697,5.29266773,3450.7,3450.6,5.86007633]
[1735902970195,5.29266773,3450.7,3450.6,4.56082666]
[1735902970196,6.3018974,3450.7,3450.6,4.56082666]
[1735902970499,9.5096974,3450.7,3450.6,4.56082666]
[1735902971399,0.29003,3450.5,3450.4,4.56082666]
[1735902971604,1.29925967,3450.5,3450.4,4.56082666]
[1735902971894,6.29925967,3450.5,3450.4,4.56082666]
[1735902972402,1.29925967,3450.5,3450.4,4.56082666]
[1735902973099,0.29004,3450.3,3450.2,1.00922967]
[1735902974105,6.02266307,3450.5,3450.0,1.29928967]
[1735902974308,0.29006,3450.1,3450.0,1.29928967]
[1735902974704,0.29006,3450.1,3450.0,1.00922967]
[1735902975002,0.29006,3450.1,3450.0,1.29929967]
[1735902976111,0.72523039,3450.1,3450.0,1.29929967]
[1735902976509,0.29008,3449.9,3449.8,0.29007]
[1735902976705,0.29008,3449.9,3449.8,1.29929967]
[1735902977014,41.09008,3449.9,3449.8,1.29929967]
[1735902977511,43.37041526,3449.9,3449.8,1.29929967]
[1735902978217,2.57041526,3449.9,3449.8,1.29929967]
[1735902987121,2.57041526,3449.9,3449.8,1.00922967]
[1735902987820,2.57041526,3449.9,3449.8,1.29930967]
[1735902988019,2.57041526,3449.9,3449.8,1.00922967]
[1735902988220,2.57041526,3449.9,3449.8,1.29930967]
[1735902988522,2.57041526,3449.9,3449.8,1.00922967]
[1735902989527,0.29009,3449.7,3449.6,0.29009]
[1735902990720,0.29009,3449.7,3449.6,1.29931967]
[1735902992124,0.29012,3449.4,3449.3,4.78851303]
[1735902993126,0.29012,3449.4,3449.3,4.56082666]
[1735902993429,4.21702967,3449.5,3449.2,1.00922967]
[1735902993622,0.29013,3449.3,3449.2,1.00922967]
[1735902994423,0.29013,3449.2,3449.1,4.56082666]
[1735902994727,0.29013,3449.2,3449.1,0.29014]
[1735902995122,2.28033526,3449.4,3449.0,1.00922967]
[1735902995430,0.29014,3449.1,3449.0,1.29937967]
[1735902995629,0.29014,3449.1,3449.0,1.00922967]
[1735902996530,2.57047526,3449.2,3449.1,0.29014]
[1735902996834,0.29014,3449.1,3449.0,1.29937967]
[1735902998529,2.28033526,3449.3,3449.0,1.00922967]
[1735902998730,2.28033526,3449.3,3449.2,1.29935967]
[1735902999231,2.57045526,3449.4,3449.3,0.29013]
[1735903000026,2.57045526,3449.4,3449.2,1.29935967]
[1735903000428,0.29012,3449.4,3449.2,1.29935967]
[1735903000628,0.29012,3449.4,3449.2,1.00922967]
[1735903000828,0.29012,3449.4,3449.3,0.29013]
[1735903002630,3.2078,3449.5,3449.2,1.00922967]
[1735903002837,0.29013,3449.3,3449.2,1.29935967]
[1735903007340,0.29013,3449.3,3449.2,1.00922967]
[1735903008344,0.29013,3449.3,3449.2,1.29935967]
[1735903009539,0.29015,3449.1,3449.0,0.29014]
[1735903009840,0.29015,3449.1,3449.0,1.29936967]
[1735903013544,0.29015,3449.1,3449.0,1.00922967]
[1735903013839,40.8,3449.2,3448.7,1.72729797]
[1735903013840,0.29017,3448.9,3448.8,1.29938967]
[1735903014631,40.8,3449.2,3448.8,1.29938967]